[Event "47th GRE-chT 2019"]
[Site "Patra"]
[Date "2019.07.05"]
[Round "5.30"]
[White "Karavitaki, Antonia"]
[Black "Hartofylakas, Spyros"]
[Result "1/2-1/2"]
[ECO "D31"]
[WhiteElo "1481"]
[BlackElo "1652"]
[Annotator "NA RC"]
[PlyCount "79"]
[EventDate "2019.07.02"]
[EventCountry "GRE"]
[SourceTitle "playchess.com"]
[Source "ChessBase"]
[SourceQuality "1"]
[TimeControl "5400+30"]

1. d4 {[%emt 0:00:00]} d5 {[%emt 0:00:00]} 2. c4 {[%emt 0:00:00]} e6 {[%emt 0:00:00]} 3. Nc3 {[%emt 0:00:00]} a6 {[%emt 0:00:38]} 4. cxd5 {[%emt 0:00:02]} exd5 {[%emt 0:02:07]} 5. Bf4 {[%emt 0:00:34]} Nf6 {[%emt 0:02:03]} 6. e3 {[%emt 0:03:12]} h6 {[%emt 0:01:47]} 7. Bd3 {[%emt 0:01:39]} Bd6 {[%emt 0:04:25]} 8. Bxd6 {[%emt 0:00:44]} Qxd6 {[%emt 0:01:04]} 9. Qc2 {[%emt 0:02:25]} O-O {[%emt 0:02:12]} 10. Nge2 {[%emt 0:07:31]} c5 {[%emt 0:03:24]} 11. dxc5 {[%emt 0:00:18]} Qxc5 {[%emt 0:01:46]} 12. Nd4 {[%emt 0:02:27]} Nc6 {[%emt 0:09:48]} 13. Nxc6 {[%emt 0:17:31]} Qxc6 {[%emt 0:04:41]} 14. Ne2 {[%emt 0:02:45]} Qxc2 {[%emt 0:00:49]} 15. Bxc2 {[%emt 0:02:00]} b6 {[%emt 0:03:30]} 16. Nd4 {[%emt 0:01:02]} Bb7 {[%emt 0:03:39]} 17. Ke2 {[%emt 0:03:41]} g6 {[%emt 0:02:01]} 18. Rhd1 {[%emt 0:03:50]} Nd7 {[%emt 0:08:42]} 19. g4 {[%emt 0:04:10]} Ne5 {[%emt 0:07:51]} 20. f3 {[%emt 0:06:56]} Rac8 {[%emt 0:01:32]} 21. Rac1 {[%emt 0:03:30]} Rfd8 {[%emt 0:02:47]} 22. h4 {[%emt 0:09:53]} Nc6 {[%emt 0:20:48]} 23. a3 {[%emt 0:01:30]} Nxd4+ {[%emt 0:00:52]} 24. Rxd4 {[%emt 0:03:20]} Rc5 {[%emt 0:02:23]} 25. Rdd1 {[%emt 0:01:51]} Rdc8 {[%emt 0:00:56]} 26. Kd2 {[%emt 0:03:01]} Kf8 {[%emt 0:05:55]} 27. Bb1 Rxc1 {[%emt 0:00:00]} 28. Rxc1 {[%emt 0:07:22]} Rxc1 {[%emt 0:00:12]} 29. Kxc1 {[%emt 0:01:11]} Ke7 {[%emt 0:00:18]} 30. Kd2 {[%emt 0:01:16]} Kd6 {[%emt 0:04:34]} 31. Kc3 {[%emt 0:03:18]} d4+ {[%emt 0:01:44]} 32. Kxd4 {[%emt 0:00:07]} Bxf3 {[%emt 0:00:16]} 33. g5 {[%emt 0:01:03]} hxg5 {[%emt 0:00:03]} 34. hxg5 {[%emt 0:02:26]} Bg4 {[%emt 0:01:55]} 35. e4 {[%emt 0:00:29]} Be6 {[%emt 0:01:47]} 36. b4 {[%emt 0:05:02]} b5 {[%emt 0:00:38]} 37. e5+ {[%emt 0:01:27]} Kc6 {[%emt 0:00:23]} 38. Be4+ {[%emt 0:00:46]} Kc7 {[%emt 0:00:31]} 39. Kc5 {[%emt 0:00:17]} Bb3 {[%emt 0:00:00]} 40. Bc6 {[%emt 0:01:24]} 1/2-1/2

[Event "47th GRE-chT 2019"]
[Site "Patra"]
[Date "2019.07.05"]
[Round "5.31"]
[White "Balogh, Csaba"]
[Black "Mastrovasilis, Dimitrios"]
[Result "1/2-1/2"]
[ECO "C42"]
[WhiteElo "2587"]
[BlackElo "2589"]
[Annotator "RC"]
[PlyCount "60"]
[EventDate "2019.07.02"]
[EventCountry "GRE"]
[SourceTitle "playchess.com"]
[Source "ChessBase"]
[SourceQuality "1"]
[TimeControl "5400+30"]

1. e4 {[%emt 0:00:00]} e5 {[%emt 0:01:30]} 2. Nf3 {[%emt 0:00:00]} Nf6 {[%emt 0:00:13]} 3. Nxe5 {[%emt 0:01:50]} d6 {[%emt 0:00:11]} 4. Nf3 {[%emt 0:00:32]} Nxe4 {[%emt 0:00:17]} 5. Nc3 {[%emt 0:00:22]} Nxc3 {[%emt 0:00:26]} 6. dxc3 {[%emt 0:00:09]} Be7 {[%emt 0:00:41]} 7. Be3 {[%emt 0:00:21]} O-O {[%emt 0:00:33]} 8. Qd2 {[%emt 0:01:34]} Nd7 {[%emt 0:00:35]} 9. O-O-O {[%emt 0:05:32]} Nf6 {[%emt 0:01:58]} 10. Bd3 {[%emt 0:00:15]} c5 {[%emt 0:00:23]} 11. Rhe1 {[%emt 0:00:28]} Be6 {[%emt 0:00:35]} 12. Kb1 {[%emt 0:00:16]} Qa5 {[%emt 0:00:35]} 13. c4 {[%emt 0:00:13]} Qxd2 {[%emt 0:00:24]} 14. Bxd2 {[%emt 0:00:13]} h6 {[%emt 0:02:04]} 15. Nh4 {[%emt 0:44:40]} Ng4 {[%emt 0:05:06]} 16. Nf5 {[%emt 0:01:03]} Rfe8 {[%emt 0:01:20]} 17. Nxe7+ {[%emt 0:04:42]} Rxe7 {[%emt 0:00:10]} 18. Re2 {[%emt 0:02:47]} Ne5 {[%emt 0:00:51]} 19. Bc3 {[%emt 0:03:02]} f6 {[%emt 0:26:25]} 20. b3 {[%emt 0:06:19]} Nxd3 {[%emt 0:00:39]} 21. Rxd3 {[%emt 0:00:40]} Rd8 {[%emt 0:01:01]} 22. Red2 {[%emt 0:07:37]} Red7 {[%emt 0:00:45]} 23. h4 {[%emt 0:00:19]} Kf7 {[%emt 0:00:42]} 24. g3 {[%emt 0:00:20]} d5 {[%emt 0:00:25]} 25. cxd5 {[%emt 0:00:06]} Rxd5 {[%emt 0:00:05]} 26. Rxd5 {[%emt 0:00:04]} Rxd5 {[%emt 0:00:08]} 27. Rxd5 {[%emt 0:00:02]} Bxd5 {[%emt 0:00:08]} 28. Kc1 {[%emt 0:02:01]} Ke6 {[%emt 0:01:55]} 29. Kd2 {[%emt 0:00:05]} Be4 {[%emt 0:00:12]} 30. a3 {[%emt 0:00:31]} Kd5 {[%emt 0:00:20]} 1/2-1/2

[Event "47th GRE-chT 2019"]
[Site "Patra"]
[Date "2019.07.05"]
[Round "5.32"]
[White "Mastrovasilis, Athanasios"]
[Black "Tzermiadianos, Andreas"]
[Result "1/2-1/2"]
[ECO "D30"]
[WhiteElo "2518"]
[BlackElo "2438"]
[Annotator "RC"]
[PlyCount "84"]
[EventDate "2019.07.02"]
[EventCountry "GRE"]
[SourceTitle "playchess.com"]
[Source "ChessBase"]
[SourceQuality "1"]
[TimeControl "5400+30"]

1. d4 {[%emt 0:00:00]} Nf6 {[%emt 0:02:16]} 2. Nf3 {[%emt 0:01:04]} e6 {[%emt 0:04:29]} 3. e3 {[%emt 0:00:29]} d5 {[%emt 0:01:50]} 4. c4 {[%emt 0:08:45]} c5 {[%emt 0:03:01]} 5. cxd5 {[%emt 0:01:17]} exd5 {[%emt 0:00:22]} 6. Bb5+ {[%emt 0:02:48]} Bd7 {[%emt 0:03:00]} 7. Bxd7+ {[%emt 0:00:59]} Nbxd7 {[%emt 0:00:21]} 8. dxc5 {[%emt 0:00:18]} Nxc5 {[%emt 0:00:25]} 9. O-O {[%emt 0:00:18]} Be7 {[%emt 0:02:28]} 10. Bd2 {[%emt 0:06:40]} O-O {[%emt 0:00:17]} 11. Bc3 {[%emt 0:05:58]} Nfe4 {[%emt 0:03:38]} 12. Bd4 {[%emt 0:00:36]} Ne6 {[%emt 0:10:32]} 13. Nc3 {[%emt 0:03:24]} Nxd4 {[%emt 0:00:36]} 14. Nxd4 {[%emt 0:04:53]} Nxc3 {[%emt 0:00:06]} 15. bxc3 {[%emt 0:02:02]} Qd7 {[%emt 0:04:38]} 16. Qb3 {[%emt 0:00:36]} Rac8 {[%emt 0:02:57]} 17. Rad1 {[%emt 0:19:18]} Rc4 {[%emt 0:08:28]} 18. Rd3 {[%emt 0:06:17]} Rfc8 {[%emt 0:04:05]} 19. Rfd1 {[%emt 0:00:34]} R8c5 {[%emt 0:08:04]} 20. Ne2 {[%emt 0:05:39]} Bf6 {[%emt 0:29:33]} 21. g3 {[%emt 0:07:54]} Qc6 {[%emt 0:02:03]} 22. Nf4 {[%emt 0:01:13]} Rxc3 {[%emt 0:00:49]} 23. Rxc3 {[%emt 0:00:08]} Rxc3 {[%emt 0:00:16]} 24. Qxd5 {[%emt 0:07:38]} g6 {[%emt 0:01:22]} 25. Qxc6 {[%emt 0:00:33]} bxc6 {[%emt 0:02:11]} 26. Rd3 {[%emt 0:00:06]} Rxd3 {[%emt 0:00:04]} 27. Nxd3 {[%emt 0:00:07]} Bc3 {[%emt 0:02:29]} 28. e4 {[%emt 0:00:08]} Kf8 {[%emt 0:00:35]} 29. Kf1 {[%emt 0:00:09]} Ke7 {[%emt 0:00:10]} 30. Ke2 {[%emt 0:00:47]} Kd6 {[%emt 0:00:50]} 31. Kd1 {[%emt 0:02:03]} f5 {[%emt 0:00:36]} 32. f3 {[%emt 0:02:27]} fxe4 {[%emt 0:00:02]} 33. fxe4 {[%emt 0:03:47]} h5 {[%emt 0:02:05]} 34. Kc2 {[%emt 0:01:34]} Be5 {[%emt 0:00:40]} 35. Ne1 {[%emt 0:00:49]} g5 {[%emt 0:00:21]} 36. Kd3 {[%emt 0:01:35]} g4 {[%emt 0:00:39]} 37. Ng2 {[%emt 0:00:31]} Kc5 {[%emt 0:00:27]} 38. Ne3 {[%emt 0:00:56]} Bd4 {[%emt 0:00:35]} 39. Nf5 {[%emt 0:00:41]} Bg1 {[%emt 0:00:00]} 40. Ng7 {[%emt 0:00:00]} Bxh2 {[%emt 0:00:00]} 41. Nxh5 {[%emt 0:00:00]} Kd6 {[%emt 0:00:00]} 42. Nf6 {[%emt 0:00:00]} Bxg3 {[%emt 0:00:00]} 1/2-1/2

[Event "47th GRE-chT 2019"]
[Site "Patra"]
[Date "2019.07.05"]
[Round "5.33"]
[White "Papadopoulos, Nikolaos"]
[Black "Malikentzos, Sotirios"]
[Result "1-0"]
[ECO "E01"]
[WhiteElo "2272"]
[BlackElo "2428"]
[Annotator "NA"]
[PlyCount "115"]
[EventDate "2019.07.02"]
[EventCountry "GRE"]
[SourceTitle "playchess.com"]
[Source "ChessBase"]
[SourceQuality "1"]
[TimeControl "5400+30"]

1. d4 {[%emt 0:00:35]} Nf6 {[%emt 0:00:00]} 2. c4 {[%emt 0:01:04]} e6 {[%emt 0:00:00]} 3. Nf3 {[%emt 0:01:16]} d5 {[%emt 0:00:43]} 4. g3 {[%emt 0:02:14]} Bb4+ {[%emt 0:01:55]} 5. Bd2 {[%emt 0:01:08]} Bd6 {[%emt 0:00:41]} 6. Bg2 {[%emt 0:01:31]} c6 {[%emt 0:00:39]} 7. Qc2 {[%emt 0:01:02]} Nbd7 {[%emt 0:01:14]} 8. O-O {[%emt 0:03:43]} O-O {[%emt 0:00:03]} 9. Bg5 {[%emt 0:08:08]} h6 {[%emt 0:01:09]} 10. Bxf6 {[%emt 0:01:18]} Nxf6 {[%emt 0:00:03]} 11. Nbd2 {[%emt 0:00:21]} b6 {[%emt 0:00:06]} 12. e4 {[%emt 0:08:07]} Be7 {[%emt 0:01:08]} 13. e5 {[%emt 0:02:56]} Nd7 {[%emt 0:01:11]} 14. cxd5 {[%emt 0:03:01]} cxd5 {[%emt 0:00:04]} 15. Rfc1 {[%emt 0:00:22]} Nb8 {[%emt 0:04:02]} 16. Bf1 {[%emt 0:04:41]} Bd7 {[%emt 0:02:28]} 17. a3 {[%emt 0:02:13]} a5 {[%emt 0:01:29]} 18. Qd3 {[%emt 0:14:44]} a4 {[%emt 0:10:24]} 19. Rc2 {[%emt 0:02:24]} b5 {[%emt 0:01:12]} 20. Rac1 {[%emt 0:03:35]} b4 {[%emt 0:00:37]} 21. Qe3 {[%emt 0:00:20]} Qb6 {[%emt 0:07:39]} 22. h4 {[%emt 0:06:27]} Nc6 {[%emt 0:03:21]} 23. h5 {[%emt 0:02:32]} Rac8 {[%emt 0:03:04]} 24. Kg2 {[%emt 0:09:12]} Na5 {[%emt 0:17:29]} 25. axb4 {[%emt 0:02:54]} Qxb4 {[%emt 0:02:11]} 26. Ne1 {[%emt 0:00:39]} Rxc2 {[%emt 0:03:37]} 27. Rxc2 {[%emt 0:00:01]} Nc6 {[%emt 0:07:06]} 28. Ndf3 {[%emt 0:00:43]} Rc8 {[%emt 0:08:57]} 29. Nd3 {[%emt 0:01:04]} Qb3 {[%emt 0:00:50]} 30. Rc3 {[%emt 0:01:15]} Qb6 {[%emt 0:00:08]} 31. Rc2 {[%emt 0:02:33]} Nb4 {[%emt 0:02:35]} 32. Rxc8+ {[%emt 0:00:18]} Bxc8 {[%emt 0:00:01]} 33. Nc5 {[%emt 0:04:54]} Qc6 {[%emt 0:06:32]} 34. Qc3 {[%emt 0:00:27]} Bxc5 {[%emt 0:03:18]} 35. dxc5 {[%emt 0:01:22]} Na6 {[%emt 0:01:07]} 36. Bxa6 {[%emt 0:02:18]} Bxa6 {[%emt 0:00:28]} 37. Nd4 {[%emt 0:00:25]} Qc7 {[%emt 0:01:11]} 38. f4 {[%emt 0:01:14]} Qb8 {[%emt 0:00:57]} 39. Kf2 {[%emt 0:02:00]} Bc4 {[%emt 0:00:41]} 40. Ke1 {[%emt 0:00:00]} Qb7 {[%emt 0:00:00]} 41. Kd2 {[%emt 0:00:00]} Kf8 {[%emt 0:00:00]} 42. c6 {[%emt 0:00:00]} Qb6 {[%emt 0:00:00]} 43. Qa3+ {[%emt 0:00:00]} Kg8 {[%emt 0:00:00]} 44. Kc3 {[%emt 0:00:00]} Bf1 {[%emt 0:00:00]} 45. Qb4 {[%emt 0:00:00]} Qa6 {[%emt 0:00:00]} 46. Qc5 {[%emt 0:00:00]} Qd3+ {[%emt 0:00:00]} 47. Kb4 {[%emt 0:00:00]} Qxg3 {[%emt 0:00:00]} 48. c7 {[%emt 0:00:00]} Ba6 {[%emt 0:00:00]} 49. Ka5 {[%emt 0:00:00]} Bc8 {[%emt 0:00:00]} 50. Nc6 {[%emt 0:00:00]} Kh7 {[%emt 0:00:00]} 51. Qc2+ {[%emt 0:00:00]} g6 {[%emt 0:00:56]} 52. Ne7 {[%emt 0:01:25]} a3 {[%emt 0:01:29]} 53. b4 {[%emt 0:00:27]} d4 {[%emt 0:02:16]} 54. hxg6+ {[%emt 0:01:57]} fxg6 {[%emt 0:03:03]} 55. Nxc8 {[%emt 0:00:14]} d3 {[%emt 0:04:37]} 56. Ne7 {[%emt 0:00:29]} a2 {[%emt 0:04:01]} 57. Qxa2 {[%emt 0:00:18]} Qe3 {[%emt 0:00:49]} 58. c8=Q {[%emt 0:03:08]} 1-0

[Event "47th GRE-chT 2019"]
[Site "Patra"]
[Date "2019.07.05"]
[Round "5.34"]
[White "Kalogeris, Ioannis"]
[Black "Gazis, Efstathios"]
[Result "1-0"]
[ECO "E38"]
[WhiteElo "2376"]
[BlackElo "2177"]
[Annotator "NA RC"]
[PlyCount "91"]
[EventDate "2019.07.02"]
[EventCountry "GRE"]
[SourceTitle "playchess.com"]
[Source "ChessBase"]
[SourceQuality "1"]
[TimeControl "5400+30"]

1. d4 {[%emt 0:00:00]} e6 {[%emt 0:07:58]} 2. c4 {[%emt 0:00:00]} Nf6 {[%emt 0:00:10]} 3. Nc3 {[%emt 0:00:12]} Bb4 {[%emt 0:00:05]} 4. Qc2 {[%emt 0:01:58]} c5 {[%emt 0:00:19]} 5. dxc5 {[%emt 0:01:08]} Bxc5 {[%emt 0:00:32]} 6. Nf3 {[%emt 0:02:20]} b6 {[%emt 0:07:11]} 7. Bg5 {[%emt 0:00:55]} Bb7 {[%emt 0:00:49]} 8. e3 {[%emt 0:00:41]} Nc6 {[%emt 0:00:55]} 9. a3 {[%emt 0:00:21]} Rc8 {[%emt 0:11:51]} 10. Rd1 {[%emt 0:03:25]} Be7 {[%emt 0:06:54]} 11. e4 {[%emt 0:05:55]} h6 {[%emt 0:07:55]} 12. Bh4 {[%emt 0:07:19]} Nh5 {[%emt 0:03:58]} 13. Bxe7 {[%emt 0:05:01]} Qxe7 {[%emt 0:02:48]} 14. Qd2 {[%emt 0:26:08]} O-O {[%emt 0:02:15]} 15. Qxd7 {[%emt 0:01:34]} Rfd8 {[%emt 0:00:17]} 16. Qxe7 {[%emt 0:00:10]} Nxe7 {[%emt 0:09:54]} 17. Rxd8+ {[%emt 0:00:07]} Rxd8 {[%emt 0:01:55]} 18. Ne5 {[%emt 0:05:01]} f5 {[%emt 0:05:08]} 19. exf5 {[%emt 0:03:13]} Nxf5 {[%emt 0:07:08]} 20. f3 {[%emt 0:09:24]} Ne3 {[%emt 0:01:02]} 21. g3 {[%emt 0:02:22]} Nf6 {[%emt 0:02:10]} 22. Bh3 {[%emt 0:05:42]} Nf5 {[%emt 0:01:49]} 23. Ke2 {[%emt 0:01:51]} Nd4+ {[%emt 0:00:25]} 24. Kf2 {[%emt 0:03:30]} Nd7 {[%emt 0:04:40]} 25. Nxd7 {[%emt 0:00:36]} Bxf3 {[%emt 0:05:08]} 26. Bxe6+ {[%emt 0:01:22]} Nxe6 {[%emt 0:00:34]} 27. Kxf3 {[%emt 0:00:21]} Rxd7 {[%emt 0:00:54]} 28. Nd5 {[%emt 0:00:42]} b5 {[%emt 0:02:16]} 29. b3 {[%emt 0:00:37]} Nd4+ {[%emt 0:00:23]} 30. Ke4 {[%emt 0:00:15]} Nxb3 {[%emt 0:00:04]} 31. cxb5 {[%emt 0:00:58]} Nd2+ {[%emt 0:00:14]} 32. Kd4 {[%emt 0:01:31]} Nb3+ {[%emt 0:01:06]} 33. Ke5 {[%emt 0:01:16]} Nd2 {[%emt 0:01:16]} 34. Ke6 {[%emt 0:00:41]} Rb7 {[%emt 0:00:27]} 35. a4 {[%emt 0:02:48]} Nb3 {[%emt 0:00:22]} 36. Kd6 {[%emt 0:00:38]} Kh7 {[%emt 0:01:12]} 37. Re1 {[%emt 0:01:45]} Nd4 {[%emt 0:02:08]} 38. Re4 {[%emt 0:01:11]} Nf3 {[%emt 0:00:23]} 39. Re7 {[%emt 0:00:16]} Rb8 {[%emt 0:00:00]} 40. Rxa7 {[%emt 0:00:00]} Nxh2 {[%emt 0:00:00]} 41. b6 {[%emt 0:00:00]} Nf1 {[%emt 0:00:00]} 42. Nf6+ {[%emt 0:00:00]} Kg6 {[%emt 0:00:00]} 43. Nd7 {[%emt 0:00:00]} Rg8 {[%emt 0:00:00]} 44. b7 {[%emt 0:00:00]} Nxg3 {[%emt 0:00:00]} 45. Ra8 {[%emt 0:00:00]} Ne4+ {[%emt 0:00:00]} 46. Kc7 {[%emt 0:00:00]} 1-0

[Event "47th GRE-chT 2019"]
[Site "Patra"]
[Date "2019.07.05"]
[Round "5.35"]
[White "Radeva, Viktoria"]
[Black "Zawadzka, Jolanta"]
[Result "0-1"]
[ECO "B59"]
[WhiteElo "2247"]
[BlackElo "2422"]
[Annotator "NA RC"]
[PlyCount "70"]
[EventDate "2019.07.02"]
[EventCountry "GRE"]
[SourceTitle "playchess.com"]
[Source "ChessBase"]
[SourceQuality "1"]
[TimeControl "5400+30"]

1. e4 {[%emt 0:00:00]} c5 {[%emt 0:01:19]} 2. Nf3 {[%emt 0:00:00]} d6 {[%emt 0:00:10]} 3. d4 {[%emt 0:00:00]} cxd4 {[%emt 0:00:05]} 4. Nxd4 {[%emt 0:00:00]} Nf6 {[%emt 0:00:04]} 5. Nc3 {[%emt 0:00:00]} Nc6 {[%emt 0:00:03]} 6. Be2 {[%emt 0:02:13]} e5 {[%emt 0:00:12]} 7. Nb3 {[%emt 0:00:04]} Be7 {[%emt 0:00:07]} 8. O-O {[%emt 0:00:12]} O-O {[%emt 0:00:15]} 9. Be3 {[%emt 0:01:56]} a5 {[%emt 0:00:40]} 10. a4 {[%emt 0:02:51]} Nb4 {[%emt 0:00:39]} 11. Qd2 {[%emt 0:11:33]} Be6 {[%emt 0:13:18]} 12. Rfd1 {[%emt 0:10:51]} Qc7 {[%emt 0:14:47]} 13. Bg5 {[%emt 0:13:57]} Rfd8 {[%emt 0:04:03]} 14. Bf3 {[%emt 0:05:16]} h6 {[%emt 0:03:09]} 15. Bxf6 {[%emt 0:06:22]} Bxf6 {[%emt 0:00:14]} 16. Nc1 {[%emt 0:05:15]} Bg5 {[%emt 0:05:32]} 17. Qe2 {[%emt 0:00:51]} Bc4 {[%emt 0:01:14]} 18. Nd3 {[%emt 0:00:17]} Nc6 {[%emt 0:00:58]} 19. Rf1 {[%emt 0:05:01]} Nd4 {[%emt 0:05:44]} 20. Qd1 {[%emt 0:00:37]} f5 {[%emt 0:06:33]} 21. exf5 {[%emt 0:06:09]} d5 {[%emt 0:01:42]} 22. Be2 {[%emt 0:12:53]} Nxe2+ {[%emt 0:13:09]} 23. Nxe2 {[%emt 0:00:43]} e4 {[%emt 0:00:06]} 24. Ndc1 {[%emt 0:01:51]} d4 {[%emt 0:01:09]} 25. Nb3 {[%emt 0:09:04]} d3 {[%emt 0:16:10]} 26. Ned4 {[%emt 0:03:00]} Bxb3 {[%emt 0:01:20]} 27. Nxb3 {[%emt 0:00:13]} Qxc2 {[%emt 0:00:33]} 28. Rb1 {[%emt 0:02:16]} Rd5 {[%emt 0:02:25]} 29. Na1 {[%emt 0:00:30]} Qxd1 {[%emt 0:00:33]} 30. Rbxd1 {[%emt 0:00:03]} Rc8 {[%emt 0:02:41]} 31. g3 {[%emt 0:00:53]} Rxf5 {[%emt 0:01:08]} 32. Nb3 {[%emt 0:00:07]} Rd5 {[%emt 0:00:33]} 33. Rfe1 {[%emt 0:00:56]} d2 {[%emt 0:02:09]} 34. Rf1 {[%emt 0:00:04]} Rc2 {[%emt 0:00:14]} 35. Rb1 {[%emt 0:00:46]} Rd3 {[%emt 0:00:55]} 0-1

[Event "47th GRE-chT 2019"]
[Site "Patra"]
[Date "2019.07.05"]
[Round "5.36"]
[White "Pasoglou, Ekaterini"]
[Black "Grafakou, Sotiria-Aphrodite"]
[Result "1/2-1/2"]
[ECO "D03"]
[WhiteElo "1804"]
[BlackElo "1684"]
[Annotator "NA RC"]
[PlyCount "82"]
[EventDate "2019.07.02"]
[EventCountry "GRE"]
[SourceTitle "playchess.com"]
[Source "ChessBase"]
[SourceQuality "1"]
[TimeControl "5400+30"]

1. d4 {[%emt 0:00:00]} Nf6 {[%emt 0:00:00]} 2. Nf3 {[%emt 0:00:00]} e6 {[%emt 0:00:00]} 3. Bg5 {[%emt 0:00:55]} d5 {[%emt 0:00:00]} 4. e3 {[%emt 0:02:06]} c5 {[%emt 0:00:24]} 5. c3 {[%emt 0:02:41]} Nbd7 {[%emt 0:02:43]} 6. Bd3 {[%emt 0:02:50]} Bd6 {[%emt 0:02:08]} 7. Nbd2 {[%emt 0:01:39]} O-O {[%emt 0:01:37]} 8. O-O {[%emt 0:01:34]} h6 {[%emt 0:05:51]} 9. Bxf6 {[%emt 0:01:47]} Nxf6 {[%emt 0:01:29]} 10. Ne5 {[%emt 0:02:40]} Nd7 {[%emt 0:01:14]} 11. f4 {[%emt 0:03:51]} f5 {[%emt 0:04:55]} 12. Nxd7 {[%emt 0:02:44]} Bxd7 {[%emt 0:02:17]} 13. Nf3 {[%emt 0:03:05]} Qe8 {[%emt 0:06:43]} 14. Qe2 {[%emt 0:10:40]} Qe7 {[%emt 0:03:46]} 15. Ne5 {[%emt 0:01:51]} Bxe5 {[%emt 0:05:12]} 16. dxe5 {[%emt 0:06:11]} c4 {[%emt 0:01:45]} 17. Bc2 {[%emt 0:00:56]} b5 {[%emt 0:07:11]} 18. g4 {[%emt 0:19:15]} g6 {[%emt 0:02:59]} 19. gxf5 {[%emt 0:04:39]} gxf5 {[%emt 0:01:16]} 20. Qh5 {[%emt 0:01:35]} Kh7 {[%emt 0:01:16]} 21. Kf2 {[%emt 0:02:14]} Be8 {[%emt 0:03:37]} 22. Qh3 {[%emt 0:02:30]} Bg6 {[%emt 0:03:19]} 23. Rg1 {[%emt 0:01:18]} Rg8 {[%emt 0:16:02]} 24. Ke2 {[%emt 0:01:50]} Rg7 {[%emt 0:07:07]} 25. Rg3 {[%emt 0:01:47]} Rag8 {[%emt 0:01:13]} 26. Rag1 {[%emt 0:00:51]} Be8 {[%emt 0:04:47]} 27. Kd2 {[%emt 0:00:43]} Rxg3 {[%emt 0:01:27]} 28. hxg3 {[%emt 0:01:33]} Qg7 {[%emt 0:01:03]} 29. g4 {[%emt 0:03:47]} h5 {[%emt 0:02:16]} 30. Rg2 {[%emt 0:04:05]} Kh8 {[%emt 0:01:29]} 31. g5 {[%emt 0:00:16]} Qg6 {[%emt 0:00:57]} 32. Bd1 {[%emt 0:00:16]} Rg7 {[%emt 0:01:04]} 33. Rh2 {[%emt 0:00:23]} Rh7 {[%emt 0:01:20]} 34. Qg3 {[%emt 0:00:59]} Qg8 {[%emt 0:01:07]} 35. Rh4 {[%emt 0:00:19]} Bg6 {[%emt 0:00:26]} 36. Qh2 {[%emt 0:00:24]} Qe8 {[%emt 0:00:51]} 37. Kc1 {[%emt 0:01:56]} Qf7 {[%emt 0:00:47]} 38. Bf3 {[%emt 0:00:22]} Qe8 {[%emt 0:00:22]} 39. Bd1 {[%emt 0:00:06]} Qf7 {[%emt 0:00:00]} 40. Bf3 {[%emt 0:00:00]} Qe8 {[%emt 0:00:00]} 41. Bd1 {[%emt 0:00:00]} Qf7 {[%emt 0:00:00]} 1/2-1/2

[Event "47th GRE-chT 2019"]
[Site "Patra"]
[Date "2019.07.05"]
[Round "5.37"]
[White "Gkika, Marina"]
[Black "Pasoglou, Nikoleta"]
[Result "0-1"]
[ECO "B32"]
[WhiteElo "1309"]
[BlackElo "1258"]
[Annotator "NA"]
[PlyCount "110"]
[EventDate "2019.07.02"]
[EventCountry "GRE"]
[SourceTitle "playchess.com"]
[Source "ChessBase"]
[SourceQuality "1"]
[TimeControl "5400+30"]

1. e4 {[%emt 0:00:00]} c5 {[%emt 0:00:00]} 2. Nf3 {[%emt 0:00:00]} Nc6 {[%emt 0:00:00]} 3. d4 {[%emt 0:00:00]} cxd4 {[%emt 0:00:00]} 4. Nxd4 {[%emt 0:00:04]} e5 {[%emt 0:00:00]} 5. Nb5 {[%emt 0:03:14]} d6 {[%emt 0:00:10]} 6. c4 {[%emt 0:20:47]} Nf6 {[%emt 0:01:08]} 7. N1c3 {[%emt 0:01:22]} a6 {[%emt 0:00:49]} 8. Na3 {[%emt 0:00:15]} Be7 {[%emt 0:01:15]} 9. f3 {[%emt 0:01:59]} Be6 {[%emt 0:03:21]} 10. Be3 {[%emt 0:01:44]} O-O {[%emt 0:10:08]} 11. Be2 {[%emt 0:01:20]} Ne8 {[%emt 0:11:37]} 12. O-O {[%emt 0:03:14]} Bg5 {[%emt 0:06:26]} 13. f4 {[%emt 0:07:48]} exf4 {[%emt 0:02:47]} 14. Bxf4 {[%emt 0:01:35]} Bxf4 {[%emt 0:03:43]} 15. Rxf4 {[%emt 0:01:56]} Qb6+ {[%emt 0:00:48]} 16. Kh1 {[%emt 0:00:14]} Qxb2 {[%emt 0:00:31]} 17. Qc1 {[%emt 0:00:41]} Qxc1+ {[%emt 0:01:58]} 18. Rxc1 {[%emt 0:00:08]} Ne5 {[%emt 0:05:08]} 19. Rff1 {[%emt 0:07:39]} Nf6 {[%emt 0:08:01]} 20. Rfd1 {[%emt 0:04:37]} Rfd8 {[%emt 0:01:24]} 21. Rd4 {[%emt 0:05:06]} Kf8 {[%emt 0:10:18]} 22. Rcd1 {[%emt 0:05:20]} Ke7 {[%emt 0:04:50]} 23. Nd5+ {[%emt 0:03:07]} Bxd5 {[%emt 0:01:41]} 24. exd5 {[%emt 0:02:13]} Ned7 {[%emt 0:05:08]} 25. Nc2 {[%emt 0:04:48]} Nc5 {[%emt 0:01:38]} 26. Re1 {[%emt 0:03:53]} Kf8 {[%emt 0:01:04]} 27. Bf3 {[%emt 0:02:53]} Re8 {[%emt 0:04:29]} 28. Rdd1 {[%emt 0:02:46]} Nfd7 {[%emt 0:00:55]} 29. Ne3 {[%emt 0:01:52]} Ne5 {[%emt 0:00:46]} 30. Be2 {[%emt 0:04:36]} Ne4 {[%emt 0:05:05]} 31. Kg1 {[%emt 0:02:25]} Rac8 {[%emt 0:02:43]} 32. Bd3 {[%emt 0:02:36]} Nc3 {[%emt 0:03:03]} 33. Rd2 {[%emt 0:00:37]} Nxd3 {[%emt 0:00:32]} 34. Rxd3 {[%emt 0:00:06]} Ne4 {[%emt 0:04:57]} 35. Rc1 {[%emt 0:02:40]} Nc5 {[%emt 0:00:34]} 36. Ra3 {[%emt 0:01:12]} Re5 {[%emt 0:00:26]} 37. Kf2 {[%emt 0:02:01]} Rce8 {[%emt 0:00:29]} 38. Kf3 {[%emt 0:00:46]} Ke7 {[%emt 0:00:34]} 39. g4 {[%emt 0:00:32]} g6 {[%emt 0:00:25]} 40. h4 {[%emt 0:00:00]} Kf8 {[%emt 0:00:00]} 41. Rb1 {[%emt 0:00:00]} R8e7 {[%emt 0:00:00]} 42. Rb6 {[%emt 0:00:00]} Rd7 {[%emt 0:00:00]} 43. Rb2 {[%emt 0:00:00]} h5 {[%emt 0:00:00]} 44. Rg2 {[%emt 0:00:00]} Rc7 {[%emt 0:00:00]} 45. gxh5 {[%emt 0:00:00]} Rxh5 {[%emt 0:00:00]} 46. Rg4 {[%emt 0:00:00]} Nd7 {[%emt 0:00:00]} 47. Rf4 {[%emt 0:00:00]} Ne5+ {[%emt 0:00:00]} 48. Kg3 {[%emt 0:00:00]} Kg7 {[%emt 0:00:00]} 49. Rc3 {[%emt 0:00:00]} b5 {[%emt 0:00:00]} 50. Ra3 {[%emt 0:00:00]} Nxc4 {[%emt 0:00:00]} 51. Nxc4 {[%emt 0:00:00]} bxc4 {[%emt 0:00:00]} 52. Rd4 {[%emt 0:00:00]} c3 {[%emt 0:00:00]} 53. Raa4 {[%emt 0:00:20]} c2 {[%emt 0:00:00]} 54. Rac4 {[%emt 0:00:11]} c1=Q {[%emt 0:00:00]} 55. Rxc1 {[%emt 0:00:10]} Rxc1 {[%emt 0:00:00]} 0-1